bitfinex-derivatives/quotes_ETHF0:USTF0_20230403
["timestamp","ask_amount","ask_price","bid_price","bid_amount"]
[1680537633999,0.58259183,1797.2,1796.9,1.5785977]
[1680537634298,0.58259183,1797.2,1796.9,0.5785977]
[1680537634495,2.55854732,1797.3,1796.9,3.7863977]
[1680537634793,2.55854732,1797.3,1797.0,0.5509824]
[1680537635200,1.68459183,1797.3,1797.0,0.5509824]
[1680537635388,2.55854732,1797.3,1797.0,0.5509824]
[1680537636094,1.68459183,1797.3,1797.0,0.5509824]
[1680537636297,1.106,1797.1,1797.0,0.5509824]
[1680537636796,0.58259183,1797.2,1797.0,0.5509824]
[1680537636996,0.58259183,1797.2,1796.9,3.2078]
[1680537638700,0.58259183,1797.2,1796.8,1.6915977]
[1680537639498,3.79039183,1797.2,1796.8,1.6915977]
[1680537641401,0.58259183,1797.2,1796.8,1.6915977]
[1680537642101,1.69559183,1797.2,1796.8,0.5785977]
[1680537644405,0.58259183,1797.2,1796.9,1.113]
[1680537644713,0.58259183,1797.3,1797.0,1.0]
[1680537645104,0.58259183,1797.3,1796.9,4.8993977]
[1680537645509,0.58259183,1797.2,1796.9,4.8993977]
[1680537645810,1.45654732,1797.3,1796.9,4.8993977]
[1680537646706,1.45654732,1797.3,1796.9,4.3208]
[1680537646902,1.45654732,1797.3,1796.9,4.8993977]
[1680537647107,0.58259183,1797.3,1796.9,4.8993977]
[1680537648417,1.45654732,1797.3,1796.9,4.3208]
[1680537648616,0.58259183,1797.2,1796.9,4.3208]
[1680537649118,0.58259183,1797.3,1796.9,4.8993977]
[1680537649514,1.45654732,1797.3,1796.9,4.3208]
[1680537649820,0.58259183,1797.2,1797.0,0.55088023]
[1680537650018,2.45654732,1797.3,1797.0,0.55088023]
[1680537650310,0.58259183,1797.2,1797.0,0.55088023]
[1680537651313,3.79039183,1797.2,1797.0,0.55088023]
[1680537652118,4.89839183,1797.2,1797.0,0.55088023]
[1680537652314,1.69559183,1797.1,1797.0,0.55088023]
[1680537652514,1.69559183,1797.1,1796.7,0.5785977]
[1680537652713,4.89639183,1797.0,1796.6,0.5785977]
[1680537652913,1.0,1796.9,1796.6,0.5785977]
[1680537653113,1.58259183,1796.9,1796.6,0.5785977]
[1680537653313,1.0,1796.9,1796.6,0.5785977]
[1680537653505,1.58259183,1796.9,1796.5,2.79794908]
[1680537653709,1.58259183,1796.9,1796.6,0.5785977]
[1680537653905,3.2078,1796.8,1796.5,2.79794908]
[1680537654111,1.58259183,1796.9,1796.5,2.79794908]
[1680537656421,1.58259183,1796.9,1796.5,2.23783338]
[1680537657917,0.58259183,1796.9,1796.5,6.31352993]
[1680537658122,1.58259183,1796.9,1796.5,3.10572993]
[1680537658420,1.58259183,1796.9,1796.5,2.23783338]
[1680537659022,0.58259183,1796.9,1796.5,2.23783338]
[1680537659422,0.58259183,1796.9,1796.5,6.31352993]
[1680537659924,0.58259183,1796.9,1796.5,5.44563338]
[1680537661019,0.58259183,1796.9,1796.6,0.5785977]
[1680537661230,3.11922391,1797.0,1796.6,0.5785977]
[1680537661723,1.58259183,1796.9,1796.6,0.5785977]
[1680537661917,0.58259183,1796.9,1796.6,0.5785977]
[1680537662121,0.58259183,1796.9,1796.6,1.6915977]
[1680537662320,2.01322391,1797.0,1796.6,1.6915977]
[1680537662519,3.2078,1796.8,1796.5,1.12483338]
[1680537662712,3.2078,1796.8,1796.4,1.113]
[1680537662713,3.2078,1796.6,1796.4,1.113]
[1680537664928,3.2078,1796.6,1796.5,0.11152257]
[1680537672232,3.2078,1796.6,1796.3,1.113]
[1680537679841,3.2078,1796.6,1796.4,0.11205209]
[1680537680339,3.2078,1796.6,1796.3,1.113]
[1680537680744,1.106,1796.5,1796.0,2.98089655]
[1680537681041,2.106,1796.5,1796.0,2.98089655]
[1680537681242,1.106,1796.5,1796.1,4.07569655]
[1680537681439,1.106,1796.5,1796.0,2.98089655]
[1680537682037,3.2078,1796.4,1796.1,1.111]
[1680537682240,3.2078,1796.6,1796.3,1.113]
[1680537682543,1.0,1796.5,1796.3,1.113]
[1680537682943,4.2078,1796.6,1796.3,1.113]
[1680537683239,4.79039183,1796.6,1796.3,1.113]
[1680537684245,4.2078,1796.6,1796.3,1.113]
[1680537684641,4.79039183,1796.6,1796.3,1.113]
[1680537685736,3.79039183,1796.6,1796.3,1.113]
[1680537685937,1.0,1796.5,1796.3,1.113]
[1680537686149,3.2078,1796.4,1796.3,1.113]
[1680537692049,3.2078,1796.4,1796.1,0.86789655]
[1680537692254,3.2078,1796.4,1796.3,0.83]
[1680537694753,3.2078,1796.4,1796.3,0.94193149]
[1680537697052,0.58259183,1796.4,1796.3,1.77693149]
[1680537697253,0.58259183,1796.6,1796.3,7.9769269]
[1680537697550,0.58259183,1796.6,1796.5,2.54151406]
[1680537697750,0.58259183,1796.7,1796.5,5.74931406]
[1680537697952,0.58259183,1796.7,1796.6,0.835]
[1680537698247,1.45654732,1796.7,1796.6,0.835]
[1680537698650,0.58259183,1796.7,1796.6,0.835]
[1680537699045,0.87395549,1796.7,1796.6,0.835]
[1680537699251,0.58308617,1796.7,1796.6,0.835]
[1680537699452,0.87395549,1796.7,1796.6,0.835]
[1680537699654,1.45714037,1796.7,1796.6,0.835]
[1680537701154,0.87395549,1796.7,1796.6,0.835]
[1680537701356,0.58323813,1796.7,1796.6,0.835]
[1680537701658,1.45719362,1796.7,1796.6,0.835]
[1680537701858,0.58323813,1796.7,1796.6,0.835]
[1680537703161,1.45719362,1796.7,1796.6,0.835]
[1680537703358,0.87395549,1796.7,1796.6,0.835]
[1680537704466,1.45723635,1796.7,1796.6,0.835]
[1680537704669,1.45724165,1796.7,1796.6,0.835]
[1680537704864,0.87395549,1796.7,1796.6,0.835]
[1680537705261,0.87395549,1796.7,1796.6,1.70651406]
[1680537705566,0.87395549,1796.7,1796.6,0.835]
[1680537707567,2.70895549,1796.7,1796.5,0.87151406]
[1680537707766,1.16527398,1796.6,1796.3,1.81344555]
[1680537707962,0.58342736,1796.4,1796.3,1.81344555]
[1680537708467,0.58342736,1796.4,1796.3,0.83]
[1680537708670,1.4585684,1796.5,1796.3,0.83]
[1680537708870,1.4585684,1796.5,1796.4,0.87224353]
[1680537709065,1.45856967,1796.5,1796.4,0.87224353]
[1680537709264,0.58342863,1796.5,1796.4,0.87224353]
[1680537709465,0.87514104,1796.5,1796.3,1.70224353]
[1680537709671,0.58343822,1796.4,1796.3,1.70224353]
[1680537710571,0.58343822,1796.5,1796.3,2.82219541]
[1680537710768,0.58343822,1796.5,1796.4,1.70017452]
[1680537711070,1.45857926,1796.6,1796.4,1.828]
[1680537711272,0.58343822,1796.5,1796.4,1.70018848]
[1680537711676,1.45857926,1796.6,1796.4,0.828]
[1680537711875,0.58343822,1796.5,1796.4,1.70017054]
[1680537712173,0.58343822,1796.5,1796.4,1.70717054]
[1680537713465,1.45857926,1796.5,1796.4,1.70717054]
[1680537713666,0.58343822,1796.5,1796.4,1.70717054]
[1680537715672,1.45857926,1796.5,1796.4,1.70717054]
[1680537716278,0.87514104,1796.5,1796.4,0.835]
[1680537717878,0.58339544,1796.5,1796.4,1.70717054]
[1680537718181,0.58339544,1796.5,1796.4,1.79778878]
[1680537719577,0.58339544,1796.5,1796.4,0.96278878]
[1680537719768,0.58339544,1796.5,1796.4,1.79778878]
[1680537721784,0.58339544,1796.5,1796.4,1.79078878]
[1680537722381,1.45853648,1796.6,1796.4,1.79078878]
[1680537723777,0.58339544,1796.5,1796.4,1.79078878]
[1680537723976,3.79119544,1796.5,1796.4,1.79078878]
[1680537724182,0.58339544,1796.5,1796.4,1.79078878]
[1680537724582,3.79119544,1796.5,1796.4,1.79078878]
[1680537724782,3.79119544,1796.5,1796.4,0.96278878]
[1680537724989,5.91694104,1796.5,1796.3,0.87217054]
[1680537725180,0.87514104,1796.4,1796.2,0.87217054]
[1680537725380,2.45852033,1796.4,1796.2,1.70317054]
[1680537725576,2.45852033,1796.4,1796.3,0.87217054]
[1680537725577,1.58337929,1796.4,1796.3,0.87217054]
[1680537725882,1.58337929,1796.4,1796.2,1.70317054]
[1680537726181,0.58337929,1796.4,1796.2,1.70317054]
[1680537727186,0.58337929,1796.4,1796.3,0.8674045]
[1680537727684,0.58337929,1796.4,1796.2,1.831]
[1680537728489,0.58337929,1796.4,1796.2,0.831]
[1680537730091,0.11084764,1796.3,1796.2,0.831]
[1680537730291,0.58337929,1796.4,1796.2,0.831]
[1680537731493,1.45852033,1796.4,1796.2,0.831]
[1680537731696,0.58337929,1796.3,1796.2,0.831]
[1680537732093,0.58337929,1796.3,1796.2,0.835]
[1680537732293,0.58337929,1796.3,1796.2,1.835]
[1680537732496,1.45852033,1796.4,1796.2,0.835]
[1680537733599,0.58337929,1796.4,1796.3,0.835]
[1680537733990,0.58337929,1796.4,1796.3,1.835]
[1680537734593,0.58337929,1796.4,1796.3,0.835]
[1680537739499,0.69184118,1796.4,1796.3,0.835]
[1680537747902,1.56698222,1796.4,1796.3,0.835]
[1680537748106,4.77478222,1796.4,1796.3,0.835]
[1680537748297,3.89978915,1796.4,1796.3,0.835]
[1680537748502,0.69198915,1796.4,1796.3,0.835]
[1680537751108,0.69198915,1796.4,1796.3,1.99219541]
[1680537751301,0.69198915,1796.4,1796.3,0.835]
[1680537751608,0.69198915,1796.4,1796.3,1.99219541]
[1680537752009,0.69198915,1796.4,1796.3,0.828]
[1680537752509,1.56713019,1796.4,1796.3,1.98519541]
[1680537753110,0.69198915,1796.4,1796.3,1.98519541]
[1680537753313,1.56713019,1796.4,1796.3,1.98519541]
[1680537753510,0.98360293,1796.4,1796.3,1.98519541]
[1680537753716,1.98360293,1796.4,1796.2,1.15719541]
[1680537753905,1.45905431,1796.3,1796.2,1.15719541]
[1680537754606,0.69250359,1796.3,1796.2,1.15719541]
[1680537762208,1.98373136,1796.3,1796.2,0.835]
[1680537762415,0.98373136,1796.3,1796.2,0.835]
[1680537769924,1.2738643,1796.3,1796.2,0.835]
[1680537770626,2.2738643,1796.3,1796.0,1.98919541]
[1680537770927,0.58380619,1796.1,1796.0,1.98919541]
[1680537771325,0.69254025,1796.1,1796.0,1.98919541]
[1680537771827,0.10873406,1796.1,1796.0,2.82419541]
[1680537772035,0.58380619,1796.2,1796.0,1.667]
[1680537772330,0.58380619,1796.2,1796.1,2.9998374]
[1680537774033,0.58380619,1796.2,1796.1,1.9998374]
[1680537775333,0.58380619,1796.2,1796.1,2.9998374]
[1680537778726,0.58380619,1796.3,1796.1,6.2076374]
[1680537778931,0.58380619,1796.3,1796.2,2.9998374]
[1680537779334,0.58380619,1796.3,1796.2,1.835]
[1680537780835,0.87570929,1796.3,1796.1,1.1648374]
[1680537781032,0.58368779,1796.2,1796.1,1.1648374]
[1680537782030,0.58368779,1796.2,1796.1,1.9958374]
[1680537784535,0.69253506,1796.2,1796.1,1.9958374]
[1680537794644,0.69253506,1796.2,1796.1,1.1648374]
[1680537794849,1.56824435,1796.2,1796.1,0.87383497]
[1680537795045,0.98455656,1796.2,1796.1,0.87383497]
[1680537798360,0.98455656,1796.2,1796.0,1.9948374]
[1680537798559,0.58386903,1796.1,1796.0,1.9948374]
[1680537799559,0.69284479,1796.1,1796.0,1.9948374]
[1680537800160,0.69284479,1796.1,1796.0,1.99548276]
[1680537802164,0.69284479,1796.1,1796.0,1.83]
[1680537802460,0.69284479,1796.1,1796.0,2.662]
[1680537805957,0.69284479,1796.1,1796.0,1.662]
[1680537806355,0.69284479,1796.1,1796.0,2.662]
[1680537807064,0.69284479,1796.1,1796.0,1.662]
[1680537807357,0.69284479,1796.1,1796.0,2.662]
[1680537808361,0.69284479,1796.1,1796.0,1.662]
[1680537808758,0.69284479,1796.1,1796.0,2.662]
[1680537808966,0.69284479,1796.1,1796.0,1.662]
[1680537813667,0.69284479,1796.1,1796.0,2.662]
[1680537815773,0.69284479,1796.1,1796.0,4.10849426]
[1680537815962,0.69284479,1796.1,1796.0,2.662]
[1680537817172,0.69284479,1796.1,1796.0,1.662]
[1680537817372,0.69284479,1796.1,1796.0,2.662]
[1680537818774,0.69284479,1796.1,1796.0,4.10849426]
[1680537819070,0.10897576,1796.1,1796.0,4.10649426]
[1680537819476,0.58386903,1796.2,1796.0,4.10649426]
[1680537819676,0.58386903,1796.2,1796.1,3.00066886]
[1680537820176,0.58386903,1796.2,1796.1,5.0428]
[1680537820480,0.87570929,1796.3,1796.1,6.48929426]
[1680537820481,0.58386903,1796.3,1796.1,6.48929426]
[1680537820679,0.58386903,1796.3,1796.2,2.00059372]
[1680537820976,0.58386903,1796.3,1796.2,3.00059372]
[1680537822077,0.58386903,1796.3,1796.2,3.83059372]
[1680537822280,0.87570929,1796.3,1796.2,3.83059372]
[1680537824283,1.45964405,1796.3,1796.2,3.83059372]
[1680537825585,0.87570929,1796.3,1796.2,3.83059372]
[1680537825778,1.45971013,1796.3,1796.2,3.83059372]
[1680537825976,0.87570929,1796.3,1796.2,3.83059372]
[1680537826285,1.45971035,1796.3,1796.2,3.83059372]
[1680537826477,0.87570929,1796.3,1796.2,3.83059372]
[1680537826878,1.4597087,1796.3,1796.2,3.83059372]
[1680537827079,0.58399941,1796.3,1796.2,3.83059372]
[1680537828089,0.58399941,1796.3,1796.2,2.665]
[1680537828386,0.58399941,1796.3,1796.2,3.83111423]
[1680537829674,0.6932323,1796.3,1796.2,3.83111423]
[1680537832681,0.10923289,1796.3,1796.2,10.50749426]
[1680537832987,0.57679449,1796.5,1796.2,9.12361575]
[1680537833183,0.57679449,1796.5,1796.4,5.20134807]
[1680537833388,0.57679449,1796.5,1796.4,6.20134807]
[1680537833687,0.57679449,1796.5,1796.4,5.0358]
[1680537834284,0.57679449,1796.5,1796.4,6.20134807]
[1680537834488,0.87570929,1796.6,1796.5,0.835]
[1680537834682,0.87570929,1796.6,1796.5,3.53968011]
[1680537835083,0.87570929,1796.6,1796.5,2.53968011]
[1680537835491,0.87570929,1796.7,1796.5,2.53968011]
[1680537835694,0.87570929,1796.7,1796.6,0.835]
[1680537842087,0.87570929,1796.7,1796.5,0.835]
[1680537843190,0.87570929,1796.6,1796.5,0.835]
[1680537844692,0.87570929,1796.6,1796.5,0.8975207]
[1680537845588,0.87570929,1796.7,1796.5,0.8975207]
[1680537846490,0.87570929,1796.6,1796.5,0.8975207]
[1680537847697,0.87570929,1796.6,1796.5,1.7325207]
[1680537847997,0.87570929,1796.7,1796.5,1.7325207]
[1680537848193,0.87570929,1796.7,1796.6,1.828]
[1680537848402,0.87570929,1796.7,1796.6,5.0358]
[1680537848701,0.87570929,1796.9,1796.6,5.0358]
[1680537848992,0.87570929,1796.9,1796.8,0.835]
[1680537849394,1.16527398,1797.0,1796.8,0.835]
[1680537849395,0.87570929,1797.0,1796.8,4.0428]
[1680537849602,0.87570929,1797.0,1796.9,0.828]
[1680537850194,0.87570929,1797.0,1796.9,1.828]
[1680537850599,0.87570929,1797.1,1796.8,5.0358]
[1680537850801,6.20807398,1797.2,1796.8,5.0358]
[1680537850802,0.87570929,1797.0,1796.8,5.0358]
[1680537851000,0.87570929,1797.1,1796.8,5.0358]
[1680537851993,0.87570929,1797.1,1796.9,0.831]
[1680537859614,0.87570929,1797.1,1797.0,1.36240335]
[1680537860008,0.87570929,1797.1,1797.0,0.36240335]
[1680537866219,0.87570929,1797.2,1797.0,0.36240335]
[1680537866412,0.87570929,1797.2,1797.0,1.36240335]
[1680537867012,0.87570929,1797.2,1797.1,0.835]
[1680537867217,0.87570929,1797.3,1797.1,0.835]
[1680537869123,0.87570929,1797.3,1797.1,4.0428]
[1680537869430,0.87570929,1797.3,1797.1,0.835]
[1680537869921,0.87570929,1797.3,1797.1,4.0428]
[1680537870128,0.87570929,1797.3,1797.1,0.835]
[1680537870528,0.87570929,1797.3,1797.1,4.0428]
[1680537870723,0.87570929,1797.3,1797.1,0.835]
[1680537871226,0.87570929,1797.3,1797.1,4.0428]
[1680537874825,0.87570929,1797.4,1797.2,1.50257078]
[1680537875029,0.87570929,1797.4,1797.2,0.50257078]
[1680537878732,0.87570929,1797.4,1797.2,0.49609399]
[1680537881036,3.54272703,1797.5,1797.2,0.49609399]
[1680537881037,0.87570929,1797.3,1797.2,0.49609399]
[1680537881236,0.87570929,1797.4,1797.2,0.49609399]
[1680537882637,0.87570929,1797.3,1797.2,0.49609399]
[1680537882832,0.87570929,1797.4,1797.2,2.16609399]
[1680537883039,5.71250929,1797.6,1797.3,4.0378]
[1680537883340,0.87570929,1797.5,1797.4,1.0]
[1680537883639,2.00027398,1797.5,1797.3,0.69240756]
[1680537883839,1.0,1797.4,1797.3,0.69240756]
[1680537884137,1.87294527,1797.5,1797.1,0.828]
[1680537884341,1.87294527,1797.5,1797.1,4.0358]
[1680537884533,0.87294527,1797.4,1797.1,0.828]
[1680537884738,1.87294527,1797.5,1797.1,4.0358]
[1680537885136,0.87294527,1797.4,1797.1,4.0358]
[1680537885332,0.87294527,1797.4,1797.1,0.828]
[1680537885536,1.87294527,1797.5,1797.1,0.828]
[1680537885839,4.08074527,1797.4,1797.1,0.828]
[1680537886042,0.87294527,1797.4,1797.1,4.0358]
[1680537886244,0.87294527,1797.4,1797.1,0.828]
[1680537886447,0.87294527,1797.4,1797.2,0.56790408]
[1680537886836,0.87294527,1797.5,1797.2,0.56790408]
[1680537887037,0.87294527,1797.4,1797.2,0.56790408]
[1680537892050,0.87294527,1797.3,1797.2,0.56790408]
[1680537892450,0.87294527,1797.4,1797.2,0.56790408]
[1680537893143,0.87294527,1797.3,1797.2,0.56790408]
[1680537896951,0.87294527,1797.4,1797.2,1.56790408]
[1680537897141,1.16527398,1797.5,1797.3,3.2078]
[1680537897142,0.87294527,1797.5,1797.3,3.2078]
[1680537897347,0.87294527,1797.6,1797.4,1.658]
[1680537897549,0.87294527,1797.6,1797.5,0.828]
[1680537897749,1.16527398,1797.7,1797.5,1.828]
[1680537897955,1.16527398,1797.6,1797.4,4.79675264]
[1680537898256,0.87402406,1797.5,1797.4,4.79675264]
[1680537898448,0.87402406,1797.5,1797.4,5.62875264]
[1680537902060,0.87402406,1797.6,1797.4,5.62875264]
[1680537902248,0.87402406,1797.6,1797.5,0.828]
[1680537906059,0.87402406,1797.6,1797.5,1.58039952]
[1680537908268,0.87402406,1797.6,1797.5,2.14922432]
[1680537911064,0.87402406,1797.7,1797.5,3.14922432]
[1680537911267,0.87402406,1797.7,1797.5,2.14922432]
[1680537911859,0.87402406,1797.7,1797.6,3.2078]
[1680537912065,0.87402406,1797.7,1797.6,0.835]
[1680537912264,0.87402406,1797.7,1797.6,4.0428]
[1680537913561,0.87402406,1797.7,1797.6,0.835]
[1680537914167,0.87402406,1797.7,1797.6,4.0428]
[1680537914365,0.87402406,1797.7,1797.6,0.835]
[1680537914561,0.87402406,1797.7,1797.6,4.0428]
[1680537915465,0.87402406,1797.8,1797.6,4.0428]
[1680537915669,0.87402406,1797.7,1797.6,4.0428]
[1680537915866,0.87402406,1797.8,1797.6,4.0428]
[1680537916062,0.87402406,1797.7,1797.6,4.0428]
[1680537917161,0.87402406,1797.7,1797.6,4.8748]
[1680537917470,0.87402406,1797.9,1797.7,0.835]
[1680537917673,0.87402406,1797.9,1797.8,4.0388]
[1680537920062,0.87402406,1797.9,1797.8,5.01018701]
[1680537920661,0.87402406,1797.9,1797.8,1.80238701]
[1680537920872,4.0358,1797.9,1797.8,0.97138701]
[1680537921175,4.0358,1797.9,1797.5,0.5688248]
[1680537921469,0.87301645,1797.8,1797.4,5.71691985]
[1680537921668,1.87301645,1797.8,1797.4,5.71691985]
[1680537922073,1.87301645,1797.8,1797.5,0.835]
[1680537922773,1.87301645,1797.8,1797.6,3.2078]
[1680537923673,0.87301645,1797.8,1797.6,3.2078]
[1680537927975,0.87301645,1797.8,1797.7,0.835]
[1680537928176,0.87301645,1798.0,1797.7,2.505]
[1680537928376,0.87301645,1798.0,1797.9,1.663]
[1680537928575,0.87301645,1798.0,1797.9,0.835]
[1680537928872,1.0,1798.0,1797.9,0.835]
[1680537929171,1.87301963,1798.0,1797.9,0.835]
[1680537930475,0.87301963,1798.0,1797.9,0.835]
[1680537930674,1.0,1798.0,1797.9,0.835]
[1680537930975,1.8730581,1798.0,1797.9,0.835]
[1680537932176,0.8730581,1798.0,1797.9,0.835]
[1680537932375,0.8730581,1798.0,1797.9,4.0428]
[1680537932682,0.8730581,1798.0,1797.9,0.835]
[1680537933174,0.8730581,1798.0,1797.9,4.0428]
[1680537934470,0.8730581,1798.0,1797.9,0.835]
[1680537935174,0.8730581,1798.0,1797.9,1.68274539]
[1680537936582,5.37307398,1798.1,1797.9,1.68274539]
[1680537936771,0.87317063,1798.0,1797.9,1.68274539]
[1680537936973,1.0,1798.0,1797.9,1.68274539]
[1680537937476,5.37307398,1798.1,1797.9,1.68274539]
[1680537937678,1.16527398,1798.0,1797.9,1.68274539]
[1680537937978,4.37307398,1798.1,1797.9,1.68274539]
[1680537938372,5.37307398,1798.1,1797.9,1.68274539]
[1680537938673,1.16527398,1798.0,1797.9,1.68274539]
[1680537940773,1.16527398,1798.0,1797.9,3.37838899]
[1680537940974,1.16527398,1798.0,1797.9,1.68274539]
[1680537943175,1.16527398,1798.0,1797.9,2.51474539]
[1680537943478,1.16527398,1798.0,1797.9,6.55254539]
[1680537943479,0.87399915,1798.0,1797.9,6.55254539]
[1680537947976,0.87399915,1798.0,1797.9,5.72254539]
[1680537949386,0.835,1798.0,1797.9,0.69022391]
[1680537949573,3.98138866,1798.0,1797.5,4.0428]
[1680537949778,4.0817876,1797.8,1797.5,4.0428]
[1680537949983,1.0,1797.7,1797.5,4.0428]
[1680537950178,1.0,1797.7,1797.6,0.52271002]
[1680537950387,4.0817876,1797.8,1797.6,0.52271002]
[1680537952477,0.8739876,1797.8,1797.6,0.52271002]
[1680537952683,0.8739876,1797.8,1797.7,1.109]
[1680537952885,0.5826789,1797.8,1797.7,2.109]
[1680537953286,1.4566665,1797.8,1797.7,2.109]
[1680537953890,0.8739876,1797.8,1797.7,2.109]
[1680537954688,0.8739876,1797.8,1797.7,1.109]
[1680537961491,4.3731168,1797.9,1797.7,1.109]
[1680537961696,1.1653168,1797.8,1797.6,1.0664128]
[1680537961888,3.2078,1797.7,1797.6,1.0664128]
[1680537962294,4.3731168,1797.7,1797.6,1.0664128]
[1680537962598,4.08247751,1797.7,1797.6,1.0664128]
[1680537963613,3.2078,1797.7,1797.6,1.0664128]
[1680537963807,4.3731168,1797.7,1797.6,1.0664128]
[1680537964005,3.2078,1797.7,1797.6,1.0664128]
[1680537964508,4.0825161,1797.7,1797.6,1.0664128]
[1680537965111,3.2078,1797.7,1797.6,1.0664128]
[1680537965307,4.08246901,1797.7,1797.6,1.0664128]
[1680537966506,0.87466901,1797.7,1797.6,1.0664128]
[1680537966909,4.08246901,1797.7,1797.6,1.0664128]
[1680537967105,0.87466901,1797.7,1797.6,1.0664128]
[1680537968614,4.08246901,1797.7,1797.6,1.0664128]
[1680537968911,4.3731168,1797.7,1797.6,1.0664128]
[1680537969114,4.3731168,1797.7,1797.6,0.8775859]
[1680537969312,1.0,1797.6,1797.3,2.79245574]
[1680537969505,0.87477696,1797.4,1797.1,2.27754807]
[1680537969708,3.79101414,1797.3,1797.1,2.27754807]
[1680537969910,1.0,1797.2,1797.1,2.27754807]
[1680537970109,1.0,1797.2,1797.0,1.72031799]
[1680537970318,3.79101414,1797.3,1797.0,1.72031799]
[1680537970716,1.0,1797.2,1797.0,1.72031799]
[1680537971717,4.79101414,1797.3,1797.0,1.72031799]
[1680537971918,3.79101414,1797.3,1797.0,1.72031799]
[1680537972214,3.79101414,1797.3,1797.0,2.83231799]
[1680537973821,3.2078,1797.3,1797.0,1.66676992]
[1680537974311,3.2078,1797.3,1797.0,1.112]
[1680537974618,3.2078,1797.3,1797.2,1.109]
[1680537975214,3.79101414,1797.3,1797.2,1.109]
[1680537975417,3.2078,1797.3,1797.2,1.109]
[1680537975716,0.58321414,1797.3,1797.2,1.109]
[1680537975917,0.58321414,1797.4,1797.2,1.109]
[1680537977123,0.58321414,1797.4,1797.3,0.26028478]
[1680537979625,0.58321414,1797.4,1797.3,1.37028478]
[1680537979817,1.16167569,1797.6,1797.3,4.57808478]
[1680537980021,0.28689873,1797.6,1797.5,2.219]
[1680537980221,3.2078,1797.7,1797.5,2.219]
[1680537980516,3.2078,1797.7,1797.6,1.11]
[1680537980721,4.08257696,1797.8,1797.6,1.11]
[1680537980919,0.87477696,1797.8,1797.7,1.112]
[1680537981119,0.87477696,1797.9,1797.7,1.112]
[1680537983719,0.87477696,1797.9,1797.8,1.112]
[1680537991529,1.41920488,1798.1,1797.8,1.112]
[1680537991722,0.87477696,1798.0,1797.9,4.3168]
[1680537992023,0.87477696,1798.1,1797.9,1.109]
[1680537992214,0.87477696,1798.1,1798.0,1.109]
[1680537994827,0.87477696,1798.1,1798.0,1.105]
[1680537995030,0.87477696,1798.2,1798.0,1.105]
[1680537995330,0.87477696,1798.2,1798.1,1.109]
[1680537997831,0.87477696,1798.3,1798.1,1.109]
[1680537998426,0.87477696,1798.2,1798.1,1.109]
[1680537998626,0.87477696,1798.3,1798.1,1.109]
[1680537998832,0.87477696,1798.2,1798.1,1.109]
[1680538000024,0.87477696,1798.3,1798.1,1.109]
[1680538002136,4.08257696,1798.3,1798.1,1.105]
[1680538004427,0.87477696,1798.3,1798.1,1.105]
[1680538004733,4.08257696,1798.3,1798.1,1.105]
[1680538006032,0.87477696,1798.3,1798.1,1.105]
[1680538007035,4.08257696,1798.3,1798.1,1.105]
[1680538009538,0.87477696,1798.3,1798.1,1.105]
[1680538010138,4.08257696,1798.3,1798.2,0.57861693]
[1680538010333,5.08257696,1798.3,1798.1,1.105]
[1680538012834,4.08257696,1798.3,1798.1,1.105]
[1680538015541,3.2078,1798.3,1798.1,1.105]
[1680538015840,4.08257696,1798.3,1798.1,1.105]
[1680538020040,0.87477696,1798.3,1798.1,1.105]
[1680538022047,0.87477696,1798.3,1798.2,1.112]
[1680538024042,1.16636929,1798.3,1798.2,1.112]
[1680538025149,1.16636929,1798.3,1798.2,1.69053763]
[1680538027147,1.16636929,1798.3,1798.2,1.40653763]
[1680538027546,4.37416929,1798.3,1798.2,1.40653763]
[1680538028247,3.2078,1798.3,1798.2,1.40653763]
[1680538028455,4.66439248,1798.3,1798.2,0.57853763]
[1680538028651,3.2078,1798.3,1798.1,0.834]
[1680538028853,1.16513803,1798.2,1798.1,0.834]
[1680538029146,2.16513803,1798.2,1798.1,0.834]
[1680538029343,1.16513803,1798.2,1798.1,0.834]
[1680538035553,2.16513803,1798.2,1798.1,0.834]
[1680538035751,2.45659248,1798.2,1798.1,0.834]
[1680538036059,3.14628459,1798.2,1798.1,0.834]
[1680538036358,3.14830196,1798.2,1798.1,0.834]
[1680538037365,2.14830196,1798.2,1798.1,0.834]
[1680538037858,0.68969211,1798.2,1798.1,0.834]
[1680538039161,1.45881964,1798.2,1798.1,0.834]
[1680538040160,1.45881964,1798.2,1798.1,1.41245847]
[1680538042172,1.45881964,1798.2,1798.1,1.40545847]
[1680538052782,1.45881964,1798.2,1798.1,1.40068074]
[1680538054482,1.45881964,1798.3,1798.1,1.40068074]
[1680538054785,1.45881964,1798.3,1798.2,0.826]
[1680538055179,1.45881964,1798.3,1798.2,1.40378208]
[1680538055786,2.14845096,1798.3,1798.2,1.40378208]
[1680538056381,1.45881964,1798.3,1798.2,1.40378208]
[1680538057281,2.14845096,1798.3,1798.2,1.40378208]
[1680538057478,1.45881964,1798.3,1798.2,1.40378208]
[1680538058489,1.45881964,1798.3,1798.2,3.39633015]
[1680538058490,0.87512364,1798.3,1798.2,3.39633015]
[1680538059380,0.87512364,1798.4,1798.2,2.23078208]
[1680538059580,0.87512364,1798.4,1798.3,4.0418]
[1680538061786,1.16683153,1798.5,1798.3,10.4388]
[1680538061983,0.87405495,1798.5,1798.4,2.658]
[1680538062680,0.87405495,1798.5,1798.4,1.658]
[1680538063681,0.87405495,1798.6,1798.4,1.658]
[1680538063883,0.87405495,1798.6,1798.5,1.662]
[1680538064985,0.87405495,1798.6,1798.5,0.828]
[1680538065189,0.87405495,1798.6,1798.5,4.0358]
[1680538065391,0.87405495,1798.6,1798.5,0.828]
[1680538065592,0.87405495,1798.6,1798.5,4.0358]
[1680538066186,0.87405495,1798.6,1798.5,0.828]
[1680538068891,0.87405495,1798.7,1798.5,4.0358]
[1680538069084,0.87405495,1798.7,1798.6,0.831]
[1680538070288,0.87405495,1798.7,1798.6,1.77612259]
[1680538070489,0.87405495,1798.7,1798.6,0.831]
[1680538072089,0.87405495,1798.7,1798.6,4.0368]
[1680538072293,0.87405495,1798.7,1798.6,0.829]
[1680538072686,0.87405495,1798.7,1798.6,4.0368]
[1680538072985,0.87405495,1798.7,1798.6,0.829]
[1680538074787,0.87405495,1798.7,1798.5,0.832]
[1680538077792,0.86862957,1798.7,1798.5,0.832]